bitfinex-derivatives/quotes_BTCF0:USTF0_20250427
["timestamp","ask_amount","ask_price","bid_price","bid_amount"]
[1745779977575,0.71669073,94349.0,94348.0,0.1913348]
[1745779977877,0.71869073,94349.0,94348.0,0.1913348]
[1745779978076,0.65329073,94349.0,94348.0,0.1913348]
[1745779979480,0.65029073,94349.0,94348.0,0.1913348]
[1745779979680,0.65329073,94349.0,94348.0,0.1913348]
[1745779982382,0.65129073,94349.0,94348.0,0.1913348]
[1745779985384,0.64929073,94349.0,94348.0,0.1913348]
[1745779985586,0.65129073,94349.0,94348.0,0.1913348]
[1745779986087,0.65229073,94349.0,94348.0,0.1913348]
[1745779986285,0.65329073,94349.0,94348.0,0.1913348]
[1745779986878,0.65029073,94349.0,94348.0,0.1913348]
[1745779987082,0.72079073,94349.0,94348.0,0.1913348]
[1745779989292,0.71879073,94349.0,94348.0,0.1933348]
[1745779989892,0.71579073,94349.0,94348.0,0.1943348]
[1745779991792,0.71579073,94349.0,94348.0,0.1923348]
[1745779991992,0.71579073,94349.0,94348.0,0.1943348]
[1745779994186,0.71579073,94349.0,94348.0,0.1278348]
[1745779995287,0.64829073,94349.0,94348.0,0.1972348]
[1745779998495,0.72925037,94349.0,94348.0,0.1972348]
[1745780004591,0.72925037,94349.0,94348.0,0.1278348]
[1745780010301,0.64829073,94349.0,94348.0,0.1278348]
[1745780014502,0.72925037,94349.0,94348.0,0.1278348]
[1745780016905,0.71652979,94349.0,94348.0,0.1278348]
[1745780018401,0.63557015,94349.0,94348.0,0.1278348]
[1745780020497,1.16523015,94349.0,94348.0,0.003]
[1745780021301,1.16523015,94349.0,94348.0,0.123]
[1745780043813,1.23153015,94349.0,94348.0,0.123]
[1745780047521,1.29933015,94349.0,94348.0,0.123]
[1745780049821,0.93853015,94349.0,94348.0,0.123]
[1745780050016,1.66013015,94349.0,94348.0,0.123]
[1745780055624,1.6474097,94349.0,94348.0,0.123]
[1745780075624,1.6474097,94349.0,94347.0,0.00794061]
[1745780075625,0.2119133,94348.0,94347.0,1e-08]
[1745780075829,0.21192,94345.0,94344.0,0.0435684]
[1745780076029,0.2119245,94343.0,94341.0,0.0706]
[1745780076224,0.3619245,94343.0,94341.0,0.1361]
[1745780076840,0.4952245,94343.0,94342.0,0.1417]
[1745780077031,0.4972245,94343.0,94342.0,0.1417]
[1745780077237,0.4972245,94343.0,94342.0,0.2617]
[1745780078243,0.5002245,94343.0,94342.0,0.2617]
[1745780078942,0.5002245,94343.0,94342.0,0.26968448]
[1745780078943,0.48750356,94343.0,94342.0,0.26968448]
[1745780079450,0.48750356,94343.0,94342.0,0.30187496]
[1745780082748,0.42100356,94343.0,94342.0,0.30187496]
[1745780084347,0.78180356,94343.0,94342.0,0.30187496]
[1745780098853,0.78180356,94343.0,94342.0,0.30147496]
[1745780100757,0.78180356,94343.0,94342.0,0.23077496]
[1745780106557,0.78180356,94343.0,94342.0,0.15727496]
[1745780108552,0.76908275,94343.0,94342.0,0.15727496]
[1745780112961,0.83598275,94343.0,94342.0,0.15727496]
[1745780114952,1.36164275,94343.0,94342.0,0.15727496]
[1745780116262,1.36064275,94343.0,94342.0,0.15727496]
[1745780117069,1.36264275,94343.0,94342.0,0.15727496]
[1745780117763,1.36464275,94343.0,94342.0,0.15727496]
[1745780118654,1.86464275,94343.0,94342.0,0.15727496]
[1745780119461,1.86564275,94343.0,94342.0,0.15727496]
[1745780121166,1.86364275,94343.0,94342.0,0.15727496]
[1745780121361,1.86664275,94343.0,94342.0,0.15727496]
[1745780126771,1.36664275,94343.0,94342.0,0.15727496]
[1745780135777,1.36364275,94343.0,94342.0,0.15727496]
[1745780136075,1.36464275,94343.0,94342.0,0.15727496]
[1745780136572,1.36364275,94343.0,94342.0,0.15727496]
[1745780136878,1.36164275,94343.0,94342.0,0.15727496]
[1745780137872,1.36164275,94343.0,94342.0,0.15827496]
[1745780138978,1.36064275,94343.0,94342.0,0.15927496]
[1745780141083,0.83098275,94343.0,94342.0,0.15927496]
[1745780141271,1.36064275,94343.0,94342.0,0.15927496]
[1745780141681,1.36064275,94343.0,94342.0,0.15827496]
[1745780141881,1.36064275,94343.0,94342.0,0.15927496]
[1745780142182,1.36064275,94343.0,94342.0,0.15827496]
[1745780143183,1.36064275,94343.0,94342.0,0.15727496]
[1745780149591,1.36064275,94343.0,94342.0,0.15827496]
[1745780150690,1.36064275,94343.0,94342.0,0.15727496]
[1745780155291,1.36064275,94343.0,94342.0,0.15927496]
[1745780155795,1.36064275,94343.0,94342.0,0.16127496]
[1745780157283,1.36064275,94343.0,94342.0,0.15927496]
[1745780157488,1.36064275,94343.0,94342.0,0.16027496]
[1745780158092,1.36064275,94343.0,94342.0,0.16127496]
[1745780158794,1.36064275,94343.0,94342.0,0.15927496]
[1745780158989,0.83098275,94343.0,94342.0,0.16127496]
[1745780159295,1.36064275,94343.0,94342.0,0.16127496]
[1745780161292,1.36064275,94343.0,94342.0,0.15927496]
[1745780161490,1.36064275,94343.0,94342.0,0.16127496]
[1745780165899,1.36064275,94343.0,94342.0,0.15927496]
[1745780166201,1.36064275,94343.0,94342.0,0.16127496]
[1745780166589,1.36064275,94343.0,94342.0,0.15927496]
[1745780166790,1.36064275,94343.0,94342.0,0.16127496]
[1745780172498,1.36064275,94343.0,94342.0,0.15927496]
[1745780172700,1.36064275,94343.0,94342.0,0.16127496]
[1745780191734,1.72144275,94343.0,94342.0,0.16127496]
[1745780197635,0.99984275,94343.0,94342.0,0.16127496]
[1745780197841,1.72144275,94343.0,94342.0,0.16127496]
[1745780198341,0.99984275,94343.0,94342.0,0.16127496]
[1745780198644,1.72144275,94343.0,94342.0,0.16127496]
[1745780218957,1.19178275,94343.0,94342.0,0.16127496]
[1745780219156,1.72144275,94343.0,94342.0,0.16127496]
[1745780229988,1.19178275,94343.0,94342.0,0.16127496]
[1745780231077,1.72144275,94343.0,94342.0,0.16127496]
[1745780238886,1.72144275,94343.0,94342.0,0.23157496]
[1745780240383,1.72144275,94343.0,94342.0,0.33757096]
[1745780240384,0.90808275,94343.0,94342.0,0.33757096]
[1745780240886,0.90808275,94343.0,94342.0,0.54949776]
[1745780243093,0.90808275,94343.0,94342.0,0.61381776]
[1745780244498,0.90808275,94343.0,94342.0,0.50782176]
[1745780244694,0.90808275,94343.0,94342.0,0.61381776]
[1745780246097,0.90808275,94343.0,94342.0,0.50782176]
[1745780246887,0.89536308,94343.0,94342.0,0.50782176]
[1745780249587,1.59502308,94343.0,94342.0,0.22559496]
[1745780249792,1.73462308,94343.0,94342.0,0.22559496]
[1745780261902,1.73462308,94343.0,94342.0,0.16127496]
[1745780262404,1.01302308,94343.0,94342.0,0.16127496]
[1745780262703,1.37382308,94343.0,94342.0,0.16127496]
[1745780278211,1.3611027,94343.0,94342.0,0.16127496]
[1745780284720,1.0003027,94343.0,94342.0,0.16127496]
[1745780284921,1.3611027,94343.0,94342.0,0.16127496]
[1745780292831,1.34838235,94343.0,94342.0,0.16127496]
[1745780293632,1.20878235,94343.0,94342.0,0.16127496]
[1745780293927,1.35158235,94343.0,94342.0,0.16127496]
[1745780294128,0.741589,94341.0,94340.0,7e-08]
[1745780294329,0.881589,94341.0,94340.0,7e-08]
[1745780294530,0.2119358,94338.0,94337.0,0.02486674]
[1745780294717,0.8715958,94338.0,94337.0,0.02486674]
[1745780294917,0.3419358,94338.0,94337.0,0.02486674]
[1745780295128,0.4789358,94338.0,94337.0,0.14486674]
[1745780296322,0.4809358,94338.0,94337.0,0.14486674]
[1745780296629,0.4829358,94338.0,94337.0,0.14486674]
[1745780298329,0.4829358,94338.0,94337.0,0.15300573]
[1745780300028,1.0125958,94338.0,94337.0,0.15300573]
[1745780309029,0.4829358,94338.0,94337.0,0.15300573]
[1745780309231,1.0125958,94338.0,94337.0,0.15300573]
[1745780309428,1.0125958,94338.0,94337.0,0.13343911]
[1745780309631,0.211965,94325.0,94324.0,0.16128446]
[1745780309935,0.2119672,94324.0,94319.0,0.16128446]
[1745780310122,1.0386272,94324.0,94323.0,0.12159025]
[1745780311423,1.0386272,94324.0,94323.0,0.12259025]
[1745780311623,1.0386272,94324.0,94323.0,0.142261]
[1745780311929,1.0386272,94324.0,94323.0,0.141261]
[1745780313235,1.0396272,94324.0,94323.0,0.141261]
[1745780314428,0.2119807,94318.0,94317.0,0.06428]
[1745780314632,1.2624407,94318.0,94317.0,0.06428]
[1745780314837,0.2119852,94316.0,94315.0,0.16128446]
[1745780315136,0.8816452,94316.0,94315.0,0.18068668]
[1745780315634,1.0805452,94316.0,94315.0,0.18068668]
[1745780316139,1.0805452,94316.0,94315.0,0.30068668]
[1745780317236,1.0805452,94316.0,94315.0,0.30268668]
[1745780317732,1.0805452,94316.0,94315.0,0.30368668]
[1745780317937,1.0805452,94316.0,94315.0,0.14240222]
[1745780319334,1.0805452,94316.0,94315.0,0.15037498]
[1745780321139,1.0805452,94316.0,94315.0,0.21947498]
[1745780321435,0.9479452,94316.0,94315.0,0.21947498]
[1745780333149,1.3087452,94316.0,94315.0,0.21947498]
[1745780338943,0.7790852,94316.0,94315.0,0.21947498]
[1745780339150,1.3087452,94316.0,94315.0,0.21947498]
[1745780340454,0.3519852,94316.0,94315.0,0.43146238]
[1745780346455,0.3519852,94316.0,94315.0,0.21947498]
[1745780346643,0.3519852,94316.0,94315.0,0.43146238]
[1745780346844,0.3519852,94316.0,94315.0,0.15037498]
[1745780347050,0.8529852,94316.0,94315.0,0.15037498]
[1745780347252,1.3826452,94316.0,94315.0,0.11013668]
[1745780348160,1.3826452,94316.0,94315.0,0.01097276]
[1745780351254,1.3826452,94316.0,94315.0,0.13097276]
[1745780373278,1.3846452,94316.0,94315.0,0.12897276]
[1745780373485,1.0238452,94316.0,94315.0,0.12897276]
[1745780373680,1.3846452,94316.0,94315.0,0.12897276]
[1745780374370,1.3866452,94316.0,94315.0,0.12797276]
[1745780377178,1.3846452,94316.0,94315.0,0.12797276]
[1745780377380,1.3836452,94316.0,94315.0,0.12797276]
[1745780377580,1.3856452,94316.0,94315.0,0.12797276]
[1745780378180,1.3836452,94316.0,94315.0,0.12797276]
[1745780378380,1.3866452,94316.0,94315.0,0.12797276]
[1745780379281,1.3856452,94316.0,94315.0,0.12797276]
[1745780379477,1.3876452,94316.0,94315.0,0.12797276]
[1745780379779,1.3856452,94316.0,94315.0,0.12797276]
[1745780379974,1.3866452,94316.0,94315.0,0.12797276]
[1745780380375,1.3876452,94316.0,94315.0,0.12797276]
[1745780380581,1.3866452,94316.0,94315.0,0.12797276]
[1745780381484,1.3876452,94316.0,94315.0,0.12797276]
[1745780382879,1.3856452,94316.0,94315.0,0.12797276]
[1745780383077,1.3876452,94316.0,94315.0,0.12797276]
[1745780383376,1.3856452,94316.0,94315.0,0.12797276]
[1745780383583,1.3876452,94316.0,94315.0,0.12797276]
[1745780385287,0.7177852,94316.0,94315.0,0.12797276]
[1745780386889,0.7177852,94316.0,94315.0,0.33996016]
[1745780387582,0.7177852,94316.0,94315.0,0.40696016]
[1745780387882,0.7147852,94316.0,94315.0,0.47656016]
[1745780389187,0.7127852,94316.0,94315.0,0.47656016]
[1745780390089,0.7137852,94316.0,94315.0,0.47656016]
[1745780393593,0.7127852,94316.0,94315.0,0.47656016]
[1745780393788,0.7127852,94316.0,94315.0,0.47856016]
[1745780394390,0.7127852,94316.0,94315.0,0.47756016]
[1745780394688,0.3519852,94316.0,94315.0,0.47756016]
[1745780396091,0.3519852,94316.0,94315.0,0.47656016]
[1745780396391,0.2119852,94316.0,94315.0,0.47656016]
[1745780398295,0.0651,94317.0,94316.0,0.2119852]
[1745780398489,0.0651,94317.0,94316.0,0.3486852]
[1745780398996,0.2770829,94317.0,94316.0,0.3486852]
[1745780399197,0.2770829,94317.0,94316.0,0.4686852]
[1745780400187,0.2770829,94317.0,94316.0,0.4696852]
[1745780400493,0.2770829,94317.0,94316.0,0.4706852]
[1745780401196,0.3608,94342.0,94316.0,0.364724]
[1745780401397,0.2119622,94327.0,94326.0,0.2649484]
[1745780401594,0.2783493,94333.0,94332.0,0.2119492]
[1745780401789,0.0664,94333.0,94332.0,0.2119492]
[1745780402095,0.278347,94333.0,94332.0,0.43795719]
[1745780402293,0.0664,94333.0,94332.0,0.43795719]
[1745780402687,0.278347,94333.0,94332.0,0.43795719]
[1745780403505,0.278347,94333.0,94332.0,0.43995719]
[1745780404499,0.278347,94333.0,94332.0,0.44095719]
[1745780405198,0.278347,94333.0,94332.0,0.3349492]
[1745780405901,0.278347,94333.0,94332.0,0.3339492]
[1745780406099,0.278347,94333.0,94332.0,0.3349492]
[1745780406597,0.278347,94333.0,94332.0,0.3359492]
[1745780407792,0.278347,94333.0,94332.0,0.3349492]
[1745780409199,0.0529827,94341.0,94340.0,0.211929]
[1745780409398,0.1529827,94341.0,94340.0,0.211929]
[1745780409599,0.7499427,94341.0,94340.0,0.211929]
[1745780410203,0.7499427,94341.0,94340.0,0.331929]
[1745780410406,0.8152427,94341.0,94340.0,0.331929]
[1745780410605,0.8162427,94341.0,94340.0,0.331929]
[1745780410806,1.0281791,94341.0,94340.0,0.331929]
[1745780411306,1.0271791,94341.0,94340.0,0.331929]
[1745780411805,1.0271791,94341.0,94340.0,0.12]
[1745780413708,1.3879791,94341.0,94340.0,0.12]
[1745780416408,1.0271791,94341.0,94340.0,0.12]
[1745780416607,1.3879791,94341.0,94340.0,0.12]
[1745780418009,1.3879791,94341.0,94340.0,0.3319313]
[1745780418611,1.3879791,94341.0,94340.0,0.12]
[1745780418917,1.3889791,94341.0,94340.0,0.12]
[1745780419611,1.3879791,94341.0,94340.0,0.12]
[1745780420412,1.3889791,94341.0,94340.0,0.12]
[1745780422615,1.3879791,94341.0,94340.0,0.12]
[1745780422812,1.3889791,94341.0,94340.0,0.12]
[1745780423616,1.3899791,94341.0,94340.0,0.12]
[1745780425613,1.3889791,94341.0,94340.0,0.12]
[1745780425817,1.3899791,94341.0,94340.0,0.12]
[1745780428724,1.3889791,94341.0,94340.0,0.12]
[1745780429422,1.2889791,94341.0,94340.0,0.12]
[1745780431529,1.2879791,94341.0,94340.0,0.12]
[1745780431730,1.2889791,94341.0,94340.0,0.12]
[1745780431928,1.2899791,94341.0,94340.0,0.12]
[1745780435129,1.27725874,94341.0,94340.0,0.12]
[1745780436031,1.27725874,94341.0,94340.0,0.28165854]
[1745780437821,0.2119402,94336.0,94335.0,0.21389325]
[1745780438126,1.2624002,94336.0,94335.0,0.21389325]
[1745780438832,1.3323002,94336.0,94335.0,0.21389325]
[1745780439128,1.3984002,94336.0,94335.0,0.33389325]
[1745780440229,1.3994002,94336.0,94335.0,0.33389325]
[1745780441132,1.3984002,94336.0,94335.0,0.33489325]
[1745780441535,1.3984002,94336.0,94335.0,0.33589325]
[1745780441725,1.3984002,94336.0,94335.0,0.122]
[1745780442030,1.3984002,94336.0,94335.0,0.121]
[1745780444632,1.3984002,94336.0,94335.0,0.12]
[1745780445136,1.3984002,94336.0,94335.0,0.122]
[1745780445319,1.3984002,94336.0,94335.0,0.124]
[1745780451224,1.3984002,94336.0,94335.0,0.122]
[1745780451423,1.3984002,94336.0,94335.0,0.121]
[1745780451926,1.3984002,94336.0,94335.0,0.122]
[1745780452534,1.3984002,94336.0,94335.0,0.12]
[1745780452737,1.3984002,94336.0,94335.0,0.121]
[1745780453439,1.3984002,94336.0,94335.0,0.12]
[1745780454033,1.0376002,94336.0,94335.0,0.12]
[1745780454237,1.3984002,94336.0,94335.0,0.122]
[1745780454633,1.3984002,94336.0,94335.0,0.124]
[1745780455338,1.3984002,94336.0,94335.0,0.122]
[1745780455727,1.3984002,94336.0,94335.0,0.12]
[1745780455924,1.3984002,94336.0,94335.0,0.123]
[1745780456636,1.3984002,94336.0,94335.0,0.125]
[1745780458342,1.3984002,94336.0,94335.0,0.122]
[1745780458931,1.3984002,94336.0,94335.0,0.125]
[1745780464453,1.0376002,94336.0,94335.0,0.125]
[1745780464644,1.3984002,94336.0,94335.0,0.125]
[1745780468753,0.7988402,94336.0,94335.0,0.2641]
[1745780468954,0.6388402,94336.0,94335.0,0.2641]
[1745780469752,0.6388402,94336.0,94335.0,0.4760425]
[1745780470054,0.62611959,94336.0,94335.0,0.4760425]
[1745780479961,0.61339919,94336.0,94335.0,0.4760425]
[1745780486074,0.61339919,94336.0,94335.0,0.2641]
[1745780486663,0.61339919,94336.0,94335.0,0.4760425]
[1745780490163,0.25259919,94336.0,94335.0,0.4760425]
[1745780490756,0.23987905,94336.0,94335.0,0.4760425]
[1745780490960,0.00264,94340.0,94336.0,0.0529845]
[1745780491158,0.00264,94340.0,94339.0,0.5727335]
[1745780491360,0.00264,94340.0,94339.0,0.6369335]
[1745780491663,0.2119313,94340.0,94339.0,0.7429335]
[1745780491858,0.2119313,94340.0,94339.0,0.8127335]
[1745780492066,0.0709,94341.0,94340.0,0.2119313]
[1745780492268,0.0709,94341.0,94340.0,0.3531313]
[1745780492655,0.282829,94341.0,94340.0,0.3531313]
[1745780493265,0.282829,94341.0,94340.0,0.5373313]
[1745780493667,0.350029,94341.0,94340.0,0.3254]
[1745780493856,0.350029,94341.0,94340.0,0.254]
[1745780494265,0.350029,94341.0,94340.0,0.255]
[1745780494563,0.350029,94341.0,94340.0,0.1862]
[1745780494764,0.350029,94341.0,94340.0,0.1852]
[1745780495164,0.351029,94341.0,94340.0,0.1842]
[1745780497162,0.350029,94341.0,94340.0,0.1842]
[1745780500569,0.33730959,94341.0,94340.0,0.1842]
[1745780501867,0.88696959,94341.0,94340.0,0.1842]
[1745780502072,0.211938,94337.0,94336.0,0.21389325]
[1745780502271,1.212398,94337.0,94336.0,0.21389325]
[1745780503681,1.212398,94337.0,94336.0,0.21589325]
[1745780503877,1.281098,94337.0,94336.0,0.21589325]
[1745780504379,1.281098,94337.0,94336.0,0.21789325]
[1745780506182,1.281098,94337.0,94336.0,0.004]
[1745780509283,1.281098,94337.0,94336.0,0.002]
[1745780509581,1.281098,94337.0,94336.0,0.003]
[1745780515893,0.211956,94329.0,94328.0,0.0642]
[1745780516091,0.582756,94329.0,94328.0,0.0642]
[1745780516393,1.112416,94329.0,94328.0,0.0642]
[1745780516576,0.2119829,94317.0,94315.0,0.07717276]
[1745780516774,0.2119829,94317.0,94316.0,0.27968368]
[1745780517278,0.2119829,94317.0,94316.0,0.39968368]
[1745780517477,0.3458829,94317.0,94316.0,0.39968368]
[1745780519589,0.3468829,94317.0,94316.0,0.39968368]
[1745780519771,0.3478829,94317.0,94316.0,0.39968368]
[1745780519977,0.3478829,94317.0,94316.0,0.46528368]
[1745780521783,0.3478829,94317.0,94316.0,0.53238368]
[1745780521985,0.3478829,94317.0,94316.0,0.31849043]
[1745780522186,0.3468829,94317.0,94316.0,0.31849043]
[1745780522383,0.3458829,94317.0,94316.0,0.31849043]
[1745780522782,0.3468829,94317.0,94316.0,0.31849043]
[1745780523282,0.3578829,94317.0,94316.0,0.31849043]
[1745780523681,0.3578829,94317.0,94316.0,0.12159043]
[1745780523977,0.8875429,94317.0,94316.0,0.18579043]
[1745780524179,0.8875429,94317.0,94316.0,0.06579043]
[1745780524685,0.8875429,94317.0,94316.0,0.00159043]
[1745780524884,0.8865429,94317.0,94316.0,0.00159043]
[1745780525777,0.8875429,94317.0,94316.0,0.00159043]
[1745780527989,0.8875429,94317.0,94304.0,0.0642]
[1745780527990,0.2120189,94301.0,94300.0,0.1]
[1745780528181,1.2624789,94301.0,94300.0,0.1]
[1745780528576,1.4016789,94301.0,94300.0,0.1]
[1745780529180,1.4026789,94301.0,94300.0,0.1]
[1745780529484,1.4036789,94301.0,94300.0,0.1]
[1745780531893,1.4036789,94301.0,94300.0,0.10794622]
[1745780533282,0.2120414,94291.0,94290.0,0.09054089]
[1745780533485,0.6428414,94291.0,94290.0,0.02634089]
[1745780533687,0.2120481,94288.0,94287.0,0.0689]
[1745780534090,0.2120481,94288.0,94287.0,0.40893956]
[1745780534291,0.2120481,94288.0,94287.0,0.19688916]
[1745780534593,0.2120391,94295.0,94294.0,0.2120346]
[1745780534797,0.2650479,94295.0,94294.0,0.2650425]
[1745780534985,0.2650479,94295.0,94294.0,0.2120346]
[1745780535284,0.2650479,94295.0,94294.0,0.3320346]
[1745780535484,0.2650479,94295.0,94294.0,0.12]
[1745780535991,0.2650479,94295.0,94294.0,0.121]
[1745780536796,0.2650479,94295.0,94294.0,0.3330346]
[1745780538986,0.2120294,94297.0,94296.0,0.2650329]
[1745780539586,0.2120294,94297.0,94296.0,0.3320329]
[1745780540191,0.2120294,94297.0,94296.0,0.4520329]
[1745780541492,0.36345,94301.0,94300.0,0.2120212]
[1745780541895,0.3608,94301.0,94300.0,0.2120212]
[1745780542198,0.3608,94301.0,94300.0,0.3320212]
[1745780543399,0.3608,94301.0,94300.0,0.3340212]
[1745780543601,0.3608,94301.0,94300.0,0.3360212]
[1745780544300,0.3608,94301.0,94300.0,0.3340212]
[1745780544498,0.3608,94301.0,94300.0,0.3360212]
[1745780545804,0.3608,94301.0,94300.0,0.3340212]
[1745780546005,0.3608,94301.0,94300.0,0.3350212]
[1745780546207,0.3608,94301.0,94300.0,0.3340212]
[1745780546402,0.43,94301.0,94300.0,0.3340212]
[1745780546602,0.6420189,94301.0,94300.0,0.3340212]
[1745780547905,0.6420189,94301.0,94300.0,0.3330212]
[1745780548106,0.6420189,94301.0,94300.0,0.4045212]
[1745780549102,0.43,94301.0,94300.0,0.4035212]
[1745780549303,0.43,94301.0,94300.0,0.4045212]
[1745780549604,0.43,94301.0,94300.0,0.4035212]
[1745780549906,0.5001,94301.0,94300.0,0.4035212]
[1745780551601,0.5001,94301.0,94300.0,0.4025212]
[1745780557013,0.1393,94301.0,94300.0,0.4025212]
[1745780561019,0.1393,94301.0,94300.0,0.3320212]
[1745780572406,0.1393,94301.0,94300.0,0.49385576]
[1745780576116,0.66896,94301.0,94300.0,0.49385576]
[1745780576711,0.66896,94301.0,94300.0,0.3320212]
[1745780581309,0.66896,94301.0,94300.0,0.3984212]
[1745780595127,0.8809789,94301.0,94300.0,0.3984212]
[1745780595327,0.8809789,94301.0,94300.0,0.3320212]
[1745780597836,0.8819789,94301.0,94300.0,0.3320212]
[1745780613244,0.66996,94301.0,94300.0,0.3320212]
[1745780613444,0.66996,94301.0,94300.0,0.5412212]
[1745780614345,0.8819789,94301.0,94300.0,0.4710212]
[1745780618541,0.8819789,94301.0,94300.0,0.3320212]
[1745780618938,0.8819789,94301.0,94300.0,0.12]
[1745780620656,0.8819789,94301.0,94300.0,0.28195662]
[1745780623250,1.0119789,94301.0,94300.0,0.28195662]
[1745780623555,1.3727789,94301.0,94300.0,0.28195662]
[1745780624259,1.3727789,94301.0,94300.0,0.16195662]
[1745780627261,1.3727789,94301.0,94294.0,0.2120344]
[1745780627262,0.2120324,94295.0,94294.0,0.2120344]
[1745780627562,0.8716924,94295.0,94294.0,0.2120344]
[1745780628048,0.2120346,94294.0,94293.0,0.16195662]
[1745780628249,0.8941946,94294.0,94293.0,0.16195662]
[1745780629254,0.8941946,94294.0,94293.0,0.28195662]
[1745780629453,0.8941946,94294.0,94293.0,0.28295662]
[1745780629661,0.8941946,94294.0,94293.0,0.28395662]
[1745780630261,0.8941946,94294.0,94293.0,0.122]
[1745780645069,1.2549946,94294.0,94293.0,0.122]
[1745780646666,0.0556559,94299.0,94294.0,0.0530083]
[1745780646868,0.2146743,94299.0,94298.0,0.2120257]
[1745780647169,0.2120243,94299.0,94298.0,0.3320257]
[1745780647759,0.2120243,94299.0,94298.0,0.4012257]
[1745780647956,0.2120243,94299.0,94298.0,0.4719257]
[1745780648665,0.2130243,94299.0,94298.0,0.4719257]
[1745780650259,0.2130243,94299.0,94298.0,0.2599]
[1745780650462,0.2130243,94299.0,94298.0,0.12]
[1745780650463,0.8826843,94299.0,94298.0,0.12]
[1745780650766,0.8826843,94299.0,94298.0,0.3320257]
[1745780650965,0.9514843,94299.0,94298.0,0.3320257]
[1745780652359,0.9514843,94299.0,94298.0,0.5336257]
[1745780655759,0.9514843,94299.0,94298.0,0.3216]
[1745780655968,0.8114843,94299.0,94298.0,0.2549]
[1745780657064,0.8114843,94299.0,94298.0,0.4669257]
[1745780657570,0.8114843,94299.0,94298.0,0.2549]
[1745780658067,0.8779843,94299.0,94298.0,0.2549]
[1745780658675,0.8779843,94299.0,94298.0,0.12]
[1745780661567,0.8779843,94299.0,94298.0,0.3320257]
[1745780670883,0.2795243,94299.0,94298.0,0.3320257]
[1745780679873,0.2795243,94299.0,94298.0,0.4724257]
[1745780680489,0.2785243,94299.0,94298.0,0.4724257]
[1745780680691,0.2805243,94299.0,94298.0,0.4724257]
[1745780681085,0.2795243,94299.0,94298.0,0.4724257]
[1745780681284,0.2805243,94299.0,94298.0,0.4724257]
[1745780681682,0.2795243,94299.0,94298.0,0.4724257]
[1745780681988,0.2805243,94299.0,94298.0,0.4724257]
[1745780682488,0.2795243,94299.0,94298.0,0.4724257]
[1745780682690,0.2805243,94299.0,94298.0,0.4724257]
[1745780683291,0.2795243,94299.0,94298.0,0.4724257]
[1745780683487,0.2805243,94299.0,94298.0,0.4724257]
[1745780685487,0.6413243,94299.0,94298.0,0.5366657]
[1745780687079,0.6413243,94299.0,94298.0,0.69862232]
[1745780690189,0.6413243,94299.0,94298.0,0.5366657]
[1745780699393,0.4293,94299.0,94298.0,0.5366657]
[1745780701100,0.5009,94299.0,94298.0,0.5366657]
[1745780701996,0.7129234,94299.0,94298.0,0.5366657]
[1745780702203,0.7119234,94299.0,94298.0,0.5366657]
[1745780702884,0.7109234,94299.0,94298.0,0.5366657]
[1745780703989,0.3501234,94299.0,94298.0,0.5366657]
[1745780704190,0.3511234,94299.0,94298.0,0.5366657]
[1745780705597,0.3521234,94299.0,94298.0,0.5366657]
[1745780706202,0.3511234,94299.0,94298.0,0.5366657]
[1745780706804,0.3521234,94299.0,94298.0,0.5366657]
[1745780706997,0.8817834,94299.0,94298.0,0.5366657]
[1745780707197,0.8817834,94299.0,94298.0,0.3962657]
[1745780708612,0.66976,94299.0,94298.0,0.3962657]
[1745780709212,0.66976,94299.0,94298.0,0.4664657]
[1745780713303,0.66876,94299.0,94298.0,0.4664657]
[1745780714597,0.66776,94299.0,94298.0,0.4664657]
[1745780718006,0.66776,94299.0,94298.0,0.3962657]
[1745780729005,0.1381,94299.0,94298.0,0.3962657]
[1745780729207,0.66776,94299.0,94298.0,0.3962657]
[1745780733332,0.9097834,94299.0,94298.0,0.18424]
[1745780733736,0.9097834,94299.0,94298.0,0.12]
[1745780734138,0.9097834,94299.0,94297.0,0.16180755]
[1745780734139,0.2120257,94298.0,94297.0,0.16180755]
[1745780734436,0.8216857,94298.0,94297.0,0.16180755]
[1745780734737,0.2120279,94297.0,94296.0,0.37383665]
[1745780734926,1.2399879,94297.0,94296.0,0.37383665]
[1745780735129,1.3874879,94297.0,94296.0,0.37383665]
[1745780736029,1.3884879,94297.0,94296.0,0.37383665]
[1745780737241,1.3894879,94297.0,94296.0,0.37383665]
[1745780738532,1.3894879,94297.0,94296.0,0.2120291]
[1745780742534,1.3884879,94297.0,94296.0,0.2120291]
[1745780742735,1.3894879,94297.0,94296.0,0.2120291]
[1745780743530,1.3884879,94297.0,94296.0,0.2120291]
[1745780743730,1.3894879,94297.0,94296.0,0.2120291]
[1745780748946,1.0286879,94297.0,94296.0,0.2120291]
[1745780756137,1.0286879,94297.0,94296.0,0.3320291]
[1745780758937,0.4990279,94297.0,94296.0,0.3320291]
[1745780759138,1.0286879,94297.0,94296.0,0.3320291]
[1745780760038,0.81666,94297.0,94296.0,0.3320291]
[1745780760342,0.002,94297.0,94296.0,0.3320291]
[1745780760549,0.00265,94301.0,94300.0,0.2120212]
[1745780760939,0.2119811,94318.0,94308.0,0.2120032]
[1745780761139,0.08444729,94314.0,94313.0,0.2119919]
[1745780761335,0.08444729,94314.0,94313.0,0.5727919]
[1745780762044,0.11944149,94320.0,94319.0,0.2119784]
[1745780762434,0.11944149,94320.0,94319.0,0.3180024]
[1745780763049,0.08535067,94320.0,94319.0,0.4380024]
[1745780763439,0.08535067,94320.0,94319.0,0.4390024]
[1745780764845,0.08535067,94320.0,94319.0,0.4420024]
[1745780765747,0.00265,94329.0,94328.0,0.2119582]
[1745780766049,0.071,94331.0,94330.0,0.2119537]
[1745780766449,0.0052,94338.0,94337.0,0.211938]
[1745780766637,0.53486,94338.0,94337.0,0.211938]
[1745780767244,0.53486,94338.0,94337.0,0.331938]
[1745780767553,0.8277958,94338.0,94337.0,0.331938]
[1745780767744,0.8966958,94338.0,94337.0,0.331938]
[1745780768454,0.8976958,94338.0,94337.0,0.331938]
[1745780768854,0.8976958,94338.0,94337.0,0.12]
[1745780769244,0.8886958,94338.0,94337.0,0.331938]
[1745780769450,0.8886958,94338.0,94337.0,0.12]
[1745780769950,0.8886958,94338.0,94337.0,0.1887]
[1745780770549,0.8886958,94338.0,94337.0,0.20546286]
[1745780770952,0.8886958,94338.0,94337.0,0.14466052]
[1745780771345,0.8986958,94338.0,94337.0,0.14466052]
[1745780773464,0.8986958,94338.0,94337.0,0.35659852]
[1745780774456,0.8986958,94338.0,94337.0,0.14466052]
[1745780777248,0.8986958,94338.0,94337.0,0.02466052]
[1745780777442,0.2119402,94336.0,94335.0,0.18416]
[1745780777647,0.7416002,94336.0,94335.0,0.18416]